bitfinex/quotes_BTCUSD_20251025
["timestamp","ask_amount","ask_price","bid_price","bid_amount"]
[1761371041857,0.2262734,111360.0,111350.0,0.09105172]
[1761371042016,0.20690958,111360.0,111350.0,0.09105172]
[1761371042223,0.54690958,111360.0,111350.0,0.09105172]
[1761371043032,0.54690958,111360.0,111350.0,0.39776287]
[1761371043407,0.20690958,111360.0,111350.0,0.39776287]
[1761371043631,0.20690958,111360.0,111350.0,0.5773767]
[1761371043851,0.02731188,111360.0,111350.0,0.5773767]
[1761371044024,0.20690958,111360.0,111350.0,0.5773767]
[1761371044465,0.02731188,111360.0,111350.0,0.5773767]
[1761371044877,0.02731188,111360.0,111350.0,0.7270767]
[1761371046488,0.00033814,111360.0,111350.0,0.8845167]
[1761371048693,0.00033814,111360.0,111350.0,0.88452509]
[1761371050143,0.00033814,111360.0,111350.0,0.88352509]
[1761371050366,0.00033814,111360.0,111350.0,0.88452509]
[1761371051064,0.00033814,111360.0,111350.0,1.24772463]
[1761371051298,0.00033814,111360.0,111350.0,1.25072463]
[1761371051990,0.00033814,111360.0,111350.0,1.24772463]
[1761371052173,0.00033814,111360.0,111350.0,0.94100509]
[1761371052380,0.00033814,111360.0,111350.0,0.94500509]
[1761371053277,0.00033814,111360.0,111350.0,0.94600509]
[1761371053501,0.00033814,111360.0,111350.0,0.98218737]
[1761371053929,0.00033814,111360.0,111350.0,1.28890691]
[1761371056799,0.00033814,111360.0,111350.0,1.13920691]
[1761371062617,0.00033814,111360.0,111350.0,1.28890691]
[1761371074902,0.00033814,111360.0,111350.0,0.98218737]
[1761371075604,0.00033814,111360.0,111350.0,1.28890691]
[1761371077638,0.00033814,111360.0,111350.0,1.3373874]
[1761371100608,0.00033814,111360.0,111350.0,1.03066786]
[1761371106310,0.00033814,111360.0,111350.0,1.3373874]
[1761371107566,0.00033814,111360.0,111350.0,1.28890691]
[1761371107783,0.00033814,111360.0,111350.0,1.35357504]
[1761371109694,0.00033814,111360.0,111350.0,1.34957504]
[1761371110015,0.00033814,111360.0,111350.0,1.34857504]
[1761371110872,0.00033814,111360.0,111350.0,1.34831906]
[1761371112193,0.00033814,111360.0,111350.0,1.19861906]
[1761371113181,1e-08,111370.0,111360.0,0.7927808]
[1761371113412,4.908e-05,111370.0,111360.0,1.22259981]
[1761371113626,4.908e-05,111370.0,111360.0,1.28733988]
[1761371113857,4.908e-05,111370.0,111360.0,1.32352216]
[1761371114631,4.908e-05,111370.0,111360.0,1.32552216]
[1761371114811,4.908e-05,111370.0,111360.0,1.33052216]
[1761371114970,4.908e-05,111370.0,111360.0,1.32352216]
[1761371118723,1e-08,111370.0,111360.0,1.32352216]
[1761371135853,1e-08,111370.0,111360.0,1.38100216]
[1761371137651,1e-08,111370.0,111360.0,1.39100215]
[1761371138434,1.55941977,111380.0,111370.0,0.21576385]
[1761371138634,1.42184538,111380.0,111370.0,1.46446148]
[1761371138837,1.42184538,111380.0,111370.0,1.15810264]
[1761371139954,1.0170959,111380.0,111370.0,1.15810264]
[1761371140103,0.95381607,111380.0,111370.0,1.15810264]
[1761371140488,0.95381607,111380.0,111370.0,1.46469419]
[1761371142746,0.95381607,111380.0,111370.0,1.15810264]
[1761371143228,0.95381607,111380.0,111370.0,1.15786993]
[1761371144075,0.95415412,111380.0,111370.0,1.15786993]
[1761371144275,0.95415412,111380.0,111370.0,1.15825808]
[1761371148445,0.46812753,111380.0,111370.0,1.47484962]
[1761371148614,0.34399394,111380.0,111370.0,1.4265141]
[1761371148816,0.11293009,111380.0,111370.0,1.4265141]
[1761371149021,1e-08,111380.0,111370.0,1.4265141]
[1761371149400,1e-08,111380.0,111370.0,1.43010847]
[1761371149828,1e-08,111390.0,111380.0,0.22574772]
[1761371150043,4.907e-05,111390.0,111380.0,0.97708431]
[1761371150247,0.00038706,111390.0,111380.0,0.97708431]
[1761371150975,0.00038706,111390.0,111380.0,0.97747246]
[1761371151222,0.00038706,111390.0,111380.0,0.98247246]
[1761371151417,0.00038706,111390.0,111380.0,0.97747246]
[1761371152215,0.00038706,111390.0,111380.0,0.97947246]
[1761371152875,0.00038706,111390.0,111380.0,0.97747246]
[1761371157344,0.00038706,111390.0,111380.0,0.87576092]
[1761371158181,0.00038706,111390.0,111380.0,1.18235247]
[1761371159058,0.00038706,111390.0,111380.0,1.19852535]
[1761371159299,0.00038706,111390.0,111380.0,0.8919338]
[1761371159508,0.00038706,111390.0,111380.0,1.19852535]
[1761371162896,0.00038706,111390.0,111380.0,1.14100535]
[1761371163101,0.00038706,111390.0,111380.0,1.19844535]
[1761371163362,0.00038706,111390.0,111380.0,0.98364535]
[1761371163572,0.00038706,111390.0,111380.0,0.8918538]
[1761371165669,0.00038706,111390.0,111380.0,1.19844535]
[1761371166187,0.00038706,111390.0,111380.0,0.8918538]
[1761371166328,0.00038706,111390.0,111380.0,1.19844535]
[1761371172753,0.00038706,111390.0,111380.0,1.50455282]
[1761371175511,0.00038706,111390.0,111380.0,1.65425282]
[1761371177258,0.00038706,111390.0,111380.0,1.58974546]
[1761371189536,0.00038706,111390.0,111380.0,1.65422687]
[1761371190715,0.00038706,111390.0,111380.0,1.93674687]
[1761371190950,0.00038706,111390.0,111380.0,1.99418687]
[1761371193017,0.00038706,111390.0,111380.0,1.0748963]
[1761371193249,0.00038706,111390.0,111380.0,1.99418687]
[1761371196346,0.00038706,111390.0,111380.0,2.02055798]
[1761371196542,0.00038706,111390.0,111380.0,2.93984855]
[1761371197470,1e-08,111390.0,111380.0,2.93984855]
[1761371199286,0.0002,111400.0,111390.0,0.7054316]
[1761371199524,0.0002,111400.0,111390.0,1.77860754]
[1761371200541,0.0002,111400.0,111390.0,1.78099569]
[1761371200920,0.0002,111400.0,111390.0,1.78599569]
[1761371202468,0.05915661,111410.0,111400.0,0.17953321]
[1761371202707,0.0322,111410.0,111400.0,1.70391611]
[1761371202889,0.0322,111410.0,111400.0,1.68596279]
[1761371203745,0.0322,111410.0,111400.0,1.74479094]
[1761371204146,0.0322,111410.0,111400.0,1.74879094]
[1761371204799,0.0322,111410.0,111400.0,1.75785135]
[1761371205008,0.0322,111410.0,111400.0,1.82231771]
[1761371205149,0.03287585,111410.0,111400.0,1.9720177]
[1761371210895,0.03287585,111410.0,111400.0,2.00819998]
[1761371223233,0.03287585,111410.0,111400.0,1.79343998]
[1761371223439,0.03287585,111410.0,111400.0,2.00819998]
[1761371228216,1e-08,111410.0,111400.0,2.57113016]
[1761371228464,1e-08,111410.0,111400.0,3.11952418]
[1761371228661,1e-08,111410.0,111400.0,3.2273277]
[1761371229260,1e-08,111410.0,111400.0,3.2223277]
[1761371229471,0.0002,111420.0,111410.0,1.63468991]
[1761371229729,0.0002,111420.0,111410.0,1.78886338]
[1761371230141,0.0002,111420.0,111410.0,1.81620087]
[1761371234019,0.0332,111430.0,111420.0,0.37538323]
[1761371234238,0.03369072,111430.0,111420.0,1.60616727]
[1761371234654,0.03369072,111430.0,111420.0,1.60655542]
[1761371234892,0.03369072,111430.0,111420.0,1.32661616]
[1761371235328,0.03369072,111430.0,111420.0,1.31861617]
[1761371235768,0.03436638,111430.0,111420.0,1.32361617]
[1761371236475,0.03436638,111430.0,111420.0,1.25926171]
[1761371236682,0.03436638,111430.0,111420.0,1.32361617]
[1761371237493,0.03436638,111430.0,111420.0,1.25926171]
[1761371244117,0.03436638,111430.0,111420.0,1.31670171]
[1761371252162,0.03436638,111430.0,111420.0,1.3379891]
[1761371254361,0.03436638,111430.0,111420.0,1.28975404]
[1761371255376,0.03436638,111430.0,111420.0,1.3541085]
[1761371260600,0.03436638,111430.0,111420.0,1.3491085]
[1761371260825,0.03436638,111430.0,111420.0,1.3471085]
[1761371272039,0.03436638,111430.0,111420.0,1.3470685]
[1761371273489,0.0252,111460.0,111450.0,0.17945266]
[1761371273700,0.0252,111460.0,111450.0,1.31046056]
[1761371273701,0.02533215,111460.0,111450.0,1.31046056]
[1761371274315,0.02533215,111460.0,111450.0,1.31084871]
[1761371275498,0.02533215,111460.0,111450.0,1.24648343]
[1761371276294,0.02533215,111460.0,111450.0,1.29463612]
[1761371279280,0.02634529,111460.0,111450.0,1.29463612]
[1761371280115,0.02634529,111460.0,111450.0,1.5135384]
[1761371280366,0.0542,111470.0,111460.0,1.16802248]
[1761371280367,1e-08,111470.0,111460.0,1.16802248]
[1761371280584,1e-08,111470.0,111460.0,1.26784148]
[1761371280798,1e-08,111470.0,111460.0,1.26822963]
[1761371281270,0.4666934,111480.0,111460.0,1.2951667]
[1761371281479,0.4666934,111480.0,111470.0,1.15121812]
[1761371281719,0.4666934,111480.0,111470.0,1.13327608]
[1761371281920,0.4666934,111480.0,111470.0,1.19122423]
[1761371282128,0.4666934,111480.0,111470.0,1.21815942]
[1761371282676,0.4666934,111480.0,111470.0,1.00319942]
[1761371282853,0.4666934,111480.0,111470.0,1.21815942]
[1761371283285,0.4666934,111480.0,111470.0,1.20210456]
[1761371283621,0.4666934,111480.0,111470.0,1.25015525]
[1761371284243,0.4666934,111480.0,111470.0,1.20210456]
[1761371284447,0.4666934,111480.0,111470.0,1.54210456]
[1761371285177,0.4666934,111480.0,111470.0,1.32714456]
[1761371285383,0.4666934,111480.0,111470.0,1.54206456]
[1761371286027,0.4666934,111480.0,111470.0,1.32714456]
[1761371286234,0.4666934,111480.0,111470.0,1.54206456]
[1761371286450,0.4666934,111480.0,111470.0,1.51512937]
[1761371288096,0.4666934,111480.0,111470.0,1.539094]
[1761371290541,0.4666934,111480.0,111470.0,1.37259216]
[1761371290806,0.4666934,111480.0,111470.0,1.34059633]
[1761371291017,0.4666934,111480.0,111470.0,1.64675815]
[1761371291199,0.4666934,111480.0,111470.0,1.65478935]
[1761371291636,0.46736861,111480.0,111470.0,1.65478935]
[1761371291884,0.46736861,111480.0,111470.0,1.65474935]
[1761371292072,0.46736861,111480.0,111470.0,1.67871488]
[1761371292492,0.46736861,111480.0,111470.0,1.06631124]
[1761371292709,0.46736861,111480.0,111470.0,1.67871488]
[1761371294509,0.46736861,111480.0,111470.0,1.65474935]
[1761371295265,0.46736861,111480.0,111470.0,1.34854753]
[1761371295491,0.46736861,111480.0,111470.0,1.04234571]
[1761371295924,0.46736861,111480.0,111470.0,1.34854753]
[1761371296330,0.46736861,111480.0,111470.0,1.65474935]
[1761371296542,0.46736861,111480.0,111470.0,1.59734935]
[1761371296759,0.46736861,111480.0,111470.0,1.65425183]
[1761371298177,0.46736861,111480.0,111470.0,1.70230252]
[1761371298742,0.46736861,111480.0,111470.0,1.0903964]
[1761371298974,0.46736861,111480.0,111470.0,1.70230252]
[1761371300432,0.46736861,111480.0,111470.0,1.67030669]
[1761371302346,0.46736861,111480.0,111470.0,1.67026669]
[1761371302554,0.46736861,111480.0,111470.0,1.45546669]
[1761371302774,0.46736861,111480.0,111470.0,1.67026669]
[1761371303633,0.46736861,111480.0,111470.0,1.02435363]
[1761371303851,0.46736861,111480.0,111470.0,0.8509532]
[1761371304076,0.46736861,111480.0,111470.0,1.0083932]
[1761371304337,0.46736861,111480.0,111470.0,1.0324636]
[1761371304550,0.46736861,111480.0,111470.0,1.03246688]
[1761371304768,0.46736861,111480.0,111470.0,0.72651382]
[1761371304949,0.46736861,111480.0,111470.0,1.03246688]
[1761371305394,0.46736861,111480.0,111470.0,1.0083932]
[1761371305869,0.46736861,111480.0,111470.0,0.54500014]
[1761371306089,0.64877298,111480.0,111470.0,0.78477769]
[1761371306309,0.64677298,111480.0,111470.0,0.78477769]
[1761371306521,0.64877298,111480.0,111470.0,0.57771772]
[1761371306751,0.64877298,111480.0,111470.0,0.09020716]
[1761371306962,0.95472604,111480.0,111470.0,0.09020716]
[1761371307622,0.64877298,111480.0,111470.0,0.09020716]
[1761371308304,0.95472604,111480.0,111470.0,0.09020716]
[1761371308516,0.64877298,111480.0,111470.0,0.09020716]
[1761371308833,0.64877298,111480.0,111470.0,0.09120716]
[1761371309198,0.64677298,111480.0,111470.0,0.09120716]
[1761371309627,0.64677298,111480.0,111470.0,0.09220716]
[1761371310004,0.64677298,111480.0,111470.0,0.10220716]
[1761371311375,0.95272604,111480.0,111470.0,0.10220716]
[1761371312027,0.64677298,111480.0,111470.0,0.10220716]
[1761371312250,0.95272604,111480.0,111470.0,0.10220716]
[1761371312680,0.64677298,111480.0,111470.0,0.10220716]
[1761371313533,0.95272604,111480.0,111470.0,0.01238815]
[1761371315703,0.97967412,111480.0,111470.0,0.01238815]
[1761371320625,1.28562718,111480.0,111470.0,0.01238815]
[1761371320810,0.97967412,111480.0,111470.0,0.01238815]
[1761371321603,0.67372106,111480.0,111470.0,0.01238815]
[1761371321807,0.97967412,111480.0,111470.0,0.01238815]
[1761371330979,1.62562718,111480.0,111470.0,0.01238815]
[1761371331886,1.62562718,111480.0,111470.0,0.00038815]
[1761371332101,1.62562718,111480.0,111470.0,0.01138815]
[1761371332560,1.62562718,111480.0,111470.0,0.00038815]
[1761371332770,1.62562718,111480.0,111470.0,0.01038815]
[1761371332957,1.62562718,111480.0,111470.0,0.01138815]
[1761371334558,1.31967412,111480.0,111470.0,0.01138815]
[1761371337181,1.62562718,111480.0,111470.0,0.01138815]
[1761371342089,1.62562718,111480.0,111470.0,0.01038815]
[1761371342508,1.62562718,111480.0,111470.0,0.00138815]
[1761371342926,1.62562718,111480.0,111470.0,0.00838815]
[1761371343332,1.62562718,111480.0,111470.0,0.00938815]
[1761371346404,1.5986791,111480.0,111470.0,0.00938815]
[1761371346619,1.68849811,111480.0,111470.0,0.00938815]
[1761371347753,0.98677298,111480.0,111470.0,0.00938815]
[1761371347977,1.5986791,111480.0,111470.0,0.00938815]
[1761371352709,0.98677298,111480.0,111470.0,0.00938815]
[1761371352914,1.29272604,111480.0,111470.0,0.00938815]
[1761371354470,1.5986791,111480.0,111470.0,0.00938815]
[1761371354894,1.68849811,111480.0,111470.0,0.00938815]
[1761371355175,3.68849811,111480.0,111470.0,0.00938815]
[1761371356498,4.08427018,111480.0,111470.0,0.00938815]
[1761371356713,4.10844483,111480.0,111470.0,0.00138815]
[1761371356920,4.10844483,111480.0,111470.0,0.00738815]
[1761371357140,4.10844483,111480.0,111470.0,0.00138815]
[1761371357349,4.10844483,111480.0,111470.0,0.00038815]
[1761371357561,4.10844483,111480.0,111470.0,0.00738815]
[1761371357972,4.10844483,111480.0,111470.0,0.00638815]
[1761371358405,4.10844483,111480.0,111470.0,0.00738815]
[1761371358823,3.80329859,111480.0,111470.0,0.00738815]
[1761371359178,3.89783859,111480.0,111470.0,0.00738815]
[1761371361305,3.90783858,111480.0,111470.0,0.00738815]
[1761371362313,3.89783859,111480.0,111470.0,0.00738815]
[1761371362638,3.90783858,111480.0,111470.0,0.00738815]
[1761371363005,3.94015558,111480.0,111470.0,0.00738815]
[1761371364448,3.94015558,111480.0,111470.0,1e-08]
[1761371367424,3.97633786,111480.0,111470.0,1e-08]
[1761371369344,0.51945266,111450.0,111440.0,0.00105262]
[1761371369541,0.82580913,111450.0,111440.0,0.00118477]
[1761371370375,0.82580913,111450.0,111440.0,0.00218477]
[1761371370807,0.82580913,111450.0,111440.0,0.00918477]
[1761371373031,0.91562814,111450.0,111440.0,0.00918477]
[1761371374003,0.92471616,111450.0,111440.0,0.00918477]
[1761371374206,0.83489715,111450.0,111440.0,0.00918477]
[1761371374813,0.82580913,111450.0,111440.0,0.00918477]
[1761371384520,1.1321656,111450.0,111440.0,0.00918477]
[1761371384737,3.1321656,111450.0,111440.0,0.00918477]
[1761371385388,3.1321656,111450.0,111440.0,0.00118477]
[1761371385582,3.22198461,111450.0,111440.0,0.00118477]
[1761371385787,3.22198461,111450.0,111440.0,0.00718477]
[1761371385996,3.22198461,111450.0,111440.0,0.00218477]
[1761371386221,3.22198461,111450.0,111440.0,0.00118477]
[1761371386427,3.24615926,111450.0,111440.0,0.00718477]
[1761371386652,3.25615925,111450.0,111440.0,0.00718477]
[1761371386858,3.28311937,111450.0,111440.0,0.00718477]
[1761371387281,3.28311937,111450.0,111440.0,1e-08]
[1761371387282,3.49081251,111450.0,111440.0,1e-08]
[1761371387698,3.52312951,111450.0,111440.0,1e-08]
[1761371388116,3.49979538,111450.0,111440.0,0.00300001]
[1761371388320,3.49979538,111450.0,111440.0,1e-08]
[1761371388530,0.17953321,111400.0,111390.0,0.2446598]
[1761371388747,0.1795311,111410.0,111390.0,0.33496953]
[1761371388962,0.1795311,111410.0,111400.0,0.08981901]
[1761371391516,0.1795311,111410.0,111400.0,0.09681901]
[1761371394427,0.1795311,111410.0,111400.0,0.09817059]
[1761371401905,0.1795311,111410.0,111400.0,0.25569059]
[1761371407002,0.1795311,111410.0,111400.0,0.00835158]
[1761371407914,0.1795311,111410.0,111400.0,0.00635158]
[1761371408118,0.1795311,111410.0,111400.0,0.00135158]
[1761371408322,0.1795311,111410.0,111400.0,0.00235158]
[1761371408569,0.1795311,111410.0,111400.0,0.00535158]
[1761371408793,0.1795311,111410.0,111400.0,0.00435158]
[1761371410797,0.1795311,111410.0,111400.0,0.00535158]
[1761371416124,0.5195311,111410.0,111400.0,0.00535158]
[1761371420057,0.5195311,111410.0,111400.0,0.46935676]
[1761371420239,0.5195311,111410.0,111400.0,0.49344615]
[1761371421367,0.5195311,111410.0,111400.0,0.76279837]
[1761371421728,0.5195311,111410.0,111400.0,0.58326516]
[1761371424271,0.1795311,111410.0,111400.0,0.58326516]
[1761371428278,0.1795311,111410.0,111400.0,0.27673998]
[1761371428515,0.1795311,111410.0,111400.0,0.58326516]
[1761371432512,0.1795311,111410.0,111400.0,0.27673998]
[1761371432643,0.1795311,111410.0,111400.0,0.58326516]
[1761371442666,0.1795311,111410.0,111400.0,0.76279837]
[1761371442868,0.1795311,111410.0,111400.0,0.58326516]
[1761371449164,0.17951709,111410.0,111400.0,1.06932355]
[1761371449501,0.17951709,111410.0,111400.0,0.76279837]
[1761371455454,0.18850306,111420.0,111400.0,1.10141381]
[1761371455680,0.18850306,111420.0,111400.0,0.79353705]
[1761371455886,0.52850306,111420.0,111410.0,0.00101359]
[1761371457300,0.52850306,111420.0,111410.0,0.00201359]
[1761371457549,0.52850306,111420.0,111410.0,0.30853877]
[1761371457940,0.52850306,111420.0,111410.0,0.00201359]
[1761371458267,0.52850306,111420.0,111410.0,0.00301359]
[1761371460265,0.52850306,111420.0,111410.0,0.39935778]
[1761371460418,0.20647937,111430.0,111410.0,0.57887487]
[1761371460635,0.20647937,111430.0,111420.0,0.46392518]
[1761371460636,0.51951724,111430.0,111420.0,0.46392518]
[1761371461030,0.17951724,111430.0,111420.0,0.73324517]
[1761371461231,0.30517688,111440.0,111420.0,0.73324517]
[1761371461232,0.27821737,111440.0,111420.0,0.73324517]
[1761371461435,0.61821737,111440.0,111420.0,0.73324517]
[1761371461641,0.17948487,111430.0,111420.0,0.76020318]
[1761371462487,0.18048487,111430.0,111420.0,0.76020318]
[1761371462911,0.001,111430.0,111420.0,0.76020318]
[1761371463317,0.61821737,111440.0,111420.0,0.76020318]
[1761371463466,0.001,111430.0,111420.0,0.76020318]
[1761371463664,0.61821737,111440.0,111420.0,0.76020318]
[1761371464124,0.61821737,111440.0,111420.0,0.76220318]
[1761371464583,0.61821737,111440.0,111430.0,0.08981901]
[1761371465611,0.61921737,111440.0,111430.0,0.08981901]
[1761371465820,0.61836436,111440.0,111430.0,0.08981901]
[1761371466123,0.61936436,111440.0,111430.0,0.08981901]
[1761371467475,0.61936436,111440.0,111430.0,0.09081901]
[1761371471283,0.61936436,111440.0,111430.0,0.09115682]
[1761371508868,0.61936436,111440.0,111430.0,0.09015682]
[1761371509084,0.61836436,111440.0,111430.0,0.09015682]
[1761371509257,0.61836436,111440.0,111430.0,0.09215682]
[1761371520706,0.61836436,111440.0,111430.0,0.00233781]
[1761371520908,0.92472609,111440.0,111430.0,0.00233781]
[1761371522397,1.0145451,111440.0,111430.0,0.00233781]
[1761371522604,0.92472609,111440.0,111430.0,0.00233781]
[1761371522840,0.95168626,111440.0,111430.0,0.00233781]
[1761371525703,0.95168626,111440.0,111430.0,0.00133781]
[1761371526958,0.95168626,111440.0,111430.0,0.00033781]
[1761371527147,0.95368626,111440.0,111430.0,0.00033781]
[1761371530580,1.04350527,111440.0,111430.0,0.00033781]
[1761371531735,0.95368626,111440.0,111430.0,0.00033781]
[1761371540846,0.64732453,111440.0,111430.0,0.00033781]
[1761371541004,0.95368626,111440.0,111430.0,0.00033781]
[1761371542277,0.64732453,111440.0,111430.0,0.00033781]
[1761371542480,0.95368626,111440.0,111430.0,0.00033781]
[1761371542765,1.26029879,111440.0,111430.0,0.00033781]
[1761371544263,0.64732453,111440.0,111430.0,0.00033781]
[1761371544465,0.95381166,111440.0,111430.0,0.00033781]
[1761371544954,0.95181166,111440.0,111430.0,0.00033781]
[1761371545501,1.25829879,111440.0,111430.0,0.00033781]
[1761371546329,1.26029879,111440.0,111430.0,0.00033781]
[1761371546495,1.25829879,111440.0,111430.0,0.00033781]
[1761371546936,1.26029879,111440.0,111430.0,0.00033781]
[1761371558403,0.64732453,111440.0,111430.0,0.00033781]
[1761371558626,0.95381166,111440.0,111430.0,0.00033781]
[1761371566125,0.64732453,111440.0,111430.0,0.00033781]
[1761371566741,0.30732453,111440.0,111430.0,0.30682494]
[1761371566960,0.28036436,111440.0,111430.0,0.48630981]
[1761371567162,0.28036436,111440.0,111430.0,0.17982268]
[1761371567305,0.27139093,111440.0,111430.0,0.57612882]
[1761371568062,0.27139093,111440.0,111430.0,0.26964169]
[1761371568286,0.27139093,111440.0,111430.0,1.42932069]
[1761371569028,0.26939093,111440.0,111430.0,1.42932069]
[1761371569231,0.26939093,111440.0,111430.0,1.43032069]
[1761371572193,0.26939093,111440.0,111430.0,1.73680782]
[1761371572394,0.26939093,111440.0,111430.0,1.43032069]
[1761371574077,0.26939093,111440.0,111430.0,1.58768069]
[1761371575311,0.26939093,111440.0,111430.0,1.89416782]
[1761371581265,0.00014699,111440.0,111430.0,1.89416782]
[1761371581471,0.00014699,111440.0,111430.0,1.9211236]
[1761371581691,0.00014699,111440.0,111430.0,1.92996848]
[1761371586775,0.00014699,111440.0,111430.0,1.9211236]
[1761371586998,0.00014699,111440.0,111430.0,1.94531693]
[1761371588286,0.00014699,111440.0,111430.0,2.09501693]
[1761371589495,0.00014699,111440.0,111430.0,1.7885298]
[1761371589727,0.00014699,111440.0,111430.0,2.09501693]
[1761371590317,0.00014699,111440.0,111430.0,2.09497368]
[1761371590944,0.00014699,111440.0,111430.0,1.78848655]
[1761371591148,0.00014699,111440.0,111430.0,2.09497368]
[1761371596075,0.17961576,111440.0,111430.0,2.09497368]
[1761371604645,0.17961576,111440.0,111430.0,1.78848655]
[1761371604878,0.17961576,111440.0,111430.0,2.09480741]
[1761371614810,0.00014699,111440.0,111430.0,2.09480741]
[1761371617530,0.00014699,111440.0,111430.0,1.78848655]
[1761371620064,0.17961576,111440.0,111430.0,1.78848655]
[1761371642752,0.00014699,111440.0,111430.0,1.78848655]
[1761371643599,0.17961576,111440.0,111430.0,1.78848655]
[1761371644814,0.00014699,111440.0,111430.0,1.78848655]
[1761371646479,0.00014699,111440.0,111430.0,1.76153077]
[1761371648444,0.17961576,111440.0,111430.0,1.76153077]
[1761371652803,0.17961576,111440.0,111430.0,1.76155157]
[1761371655918,0.00014699,111440.0,111430.0,1.76155157]
[1761371659168,0.17961576,111440.0,111430.0,1.76155157]
[1761371664762,0.17961576,111440.0,111430.0,2.06788602]
[1761371669491,0.17961576,111440.0,111430.0,1.88840115]
[1761371672945,0.48595021,111440.0,111430.0,1.4247067]
[1761371673080,0.48595021,111440.0,111430.0,1.5820267]
[1761371673288,0.48595021,111440.0,111430.0,1.55785582]
[1761371674612,0.79228466,111440.0,111430.0,1.31071681]
[1761371675230,0.81924299,111440.0,111430.0,1.31071681]
[1761371677502,0.81924299,111440.0,111430.0,1.16101681]
[1761371678514,0.81924299,111440.0,111430.0,1.16001681]
[1761371678924,0.82124299,111440.0,111430.0,1.16001681]
[1761371679129,0.81924299,111440.0,111430.0,1.16001681]
[1761371679461,0.82124299,111440.0,111430.0,1.16001681]
[1761371700479,2.911062,111440.0,111430.0,1.16001681]
[1761371701813,2.909062,111440.0,111430.0,1.16001681]
[1761371702173,2.913062,111440.0,111430.0,1.16001681]
[1761371703510,2.93724401,111440.0,111430.0,1.16001681]
[1761371712280,3.03177401,111440.0,111430.0,1.16001681]
[1761371712495,3.02706302,111440.0,111430.0,1.16001681]
[1761371714650,3.00288101,111440.0,111430.0,1.16001681]
[1761371714855,3.02711108,111440.0,111430.0,1.16001681]
[1761371722088,3.70576253,111440.0,111430.0,1.09954904]
[1761371722299,3.71576252,111440.0,111430.0,1.09954904]
[1761371722498,3.81029252,111440.0,111430.0,1.09954904]
[1761371722930,3.78606245,111440.0,111430.0,1.09954904]
[1761371723359,3.50395902,111440.0,111430.0,1.09954904]
[1761371726902,3.19785568,111440.0,111430.0,1.09954904]
[1761371727309,3.10332568,111440.0,111430.0,1.09954904]
[1761371728968,3.16375244,111440.0,111430.0,1.06641918]
[1761371730142,3.16375244,111440.0,111430.0,1.06121205]
[1761371731437,3.11527694,111440.0,111430.0,1.06121205]
[1761371735680,2.80871138,111440.0,111430.0,1.06121205]
[1761371735911,3.11527694,111440.0,111430.0,1.06121205]
[1761371737580,3.20980694,111440.0,111430.0,1.06121205]
[1761371747244,3.25828244,111440.0,111430.0,1.06121205]
[1761371754788,2.8210046,111440.0,111430.0,1.06121205]
[1761371754989,2.80871138,111440.0,111430.0,1.06121205]
[1761371755206,3.11527694,111440.0,111430.0,1.06121205]
[1761371758228,3.20980694,111440.0,111430.0,1.06121205]
[1761371759550,3.25828244,111440.0,111430.0,1.06121205]
[1761371765806,3.20980694,111440.0,111430.0,1.06121205]
[1761371767368,3.11527694,111440.0,111430.0,1.06121205]
[1761371778700,3.16375244,111440.0,111430.0,1.06121205]
[1761371780483,3.15375245,111440.0,111430.0,1.06121205]
[1761371780684,3.16375244,111440.0,111430.0,1.06121205]
[1761371780831,3.15375245,111440.0,111430.0,1.06121205]
[1761371781032,3.16375244,111440.0,111430.0,1.06121205]
[1761371786777,3.47015708,111440.0,111430.0,1.06121205]
[1761371790304,3.56470708,111440.0,111430.0,1.06121205]
[1761371790506,3.47015708,111440.0,111430.0,1.06121205]
[1761371797304,3.42168158,111440.0,111430.0,0.4834541]
[1761371797508,3.42168158,111440.0,111430.0,0.40677248]
[1761371797704,3.42168158,111440.0,111430.0,1e-08]
[1761371798664,3.41768158,111440.0,111430.0,1e-08]
[1761371798865,3.42268158,111440.0,111430.0,1e-08]
[1761371799341,3.44692058,111440.0,111430.0,1e-08]
[1761371800079,3.42268158,111440.0,111430.0,1e-08]
[1761371800297,3.44691801,111440.0,111430.0,1e-08]
[1761371800561,3.84795311,111440.0,111430.0,1e-08]
[1761371801106,3.82371668,111440.0,111430.0,1e-08]
[1761371801249,3.84795046,111440.0,111430.0,1e-08]
[1761371801465,3.54146536,111440.0,111430.0,1e-08]
[1761371801867,3.84795046,111440.0,111430.0,1e-08]
[1761371802770,3.85693319,111440.0,111430.0,1e-08]
[1761371803011,3.83371667,111440.0,111430.0,1e-08]
[1761371807732,0.51953321,111400.0,111390.0,0.02696661]
[1761371808904,0.51953321,111400.0,111390.0,0.02745733]
[1761371809102,0.52053321,111400.0,111390.0,0.03245733]
[1761371809985,0.52053321,111400.0,111390.0,0.03345733]
[1761371810529,0.51953321,111400.0,111390.0,0.02845733]
[1761371810917,0.52053321,111400.0,111390.0,0.03145733]
[1761371811118,0.51953321,111400.0,111390.0,0.02845733]
[1761371811321,0.51953321,111400.0,111390.0,0.03345733]
[1761371811530,0.52053321,111400.0,111390.0,0.03345733]
[1761371811732,0.51953321,111400.0,111390.0,0.02745733]
[1761371812084,0.52053321,111400.0,111390.0,0.03045733]
[1761371812334,0.51953321,111400.0,111390.0,0.02745733]
[1761371812565,0.52053321,111400.0,111390.0,0.03045733]
[1761371812964,0.52053321,111400.0,111390.0,0.03145733]
[1761371813331,0.52053321,111400.0,111390.0,0.03280909]
[1761371813562,0.52053321,111400.0,111390.0,0.03180909]
[1761371813765,0.52053321,111400.0,111390.0,0.03280909]
[1761371817795,0.52053321,111400.0,111390.0,0.00584248]
[1761371817796,0.82701831,111400.0,111390.0,0.00584248]
[1761371819000,0.85398803,111400.0,111390.0,0.00584248]
[1761371833678,0.85398803,111400.0,111390.0,0.20584248]
[1761371841464,0.54750293,111400.0,111390.0,0.20584248]
[1761371842305,0.85398803,111400.0,111390.0,0.20584248]
[1761371843601,0.54750293,111400.0,111390.0,0.20584248]
[1761371847832,0.54750293,111400.0,111390.0,0.51232758]
[1761371848259,0.54750293,111400.0,111390.0,0.20584248]
[1761371852442,0.20750293,111400.0,111390.0,0.51241579]
[1761371852666,0.18053321,111400.0,111390.0,0.69196512]
[1761371852845,0.001,111400.0,111390.0,0.78178413]
[1761371853047,0.001,111400.0,111390.0,0.80875036]
[1761371855185,0.001,111400.0,111390.0,0.83291338]
[1761371855425,0.001,111400.0,111390.0,0.80875036]
[1761371855633,0.001,111400.0,111390.0,0.78178413]
[1761371857648,0.001,111400.0,111390.0,1.08835744]
[1761371857881,0.001,111400.0,111390.0,1.20618274]
[1761371858107,0.001,111400.0,111390.0,1.59703103]
[1761371858552,0.18842529,111450.0,111440.0,0.17946275]
[1761371858553,0.17945266,111450.0,111440.0,0.17946275]
[1761371858771,0.17945266,111450.0,111440.0,0.19740962]
[1761371859008,0.17945266,111450.0,111430.0,0.64347408]
[1761371859223,0.17945266,111450.0,111430.0,0.33690077]
[1761371859871,0.17950167,111450.0,111430.0,0.33690077]
[1761371860527,0.17950167,111450.0,111440.0,0.18046877]
[1761371860749,0.17950167,111450.0,111440.0,0.17946877]